bitfinex/quotes_ETHUSD_20240601
["timestamp","ask_amount","ask_price","bid_price","bid_amount"]
[1717238787081,0.11307292,3785.7,3785.4,2.3428]
[1717238787306,3.0,3786.0,3785.4,2.3428]
[1717238787795,0.11307649,3785.9,3785.4,2.3428]
[1717238788870,0.11307649,3785.9,3785.5,0.634]
[1717238789073,0.11307649,3785.9,3785.4,2.3428]
[1717238789270,2.64127,3786.1,3785.4,2.3428]
[1717238789713,0.11328238,3786.0,3785.4,2.3428]
[1717238793115,0.74728238,3786.0,3785.4,2.3428]
[1717238793320,0.38873762,3786.0,3785.4,2.3428]
[1717238795289,0.11328238,3786.0,3785.4,2.3428]
[1717238799299,2.64141,3785.9,3785.3,0.634]
[1717238799502,2.64141,3785.9,3785.1,2.3428]
[1717238799827,0.11332345,3785.8,3785.1,2.3428]
[1717238800028,0.4521968,3785.8,3785.1,2.3428]
[1717238801730,2.64155,3785.7,3784.9,2.3428]
[1717238801935,2.2617,3785.6,3784.9,2.3428]
[1717238802234,0.11331989,3785.6,3785.2,0.634]
[1717238802438,0.11331989,3785.6,3785.3,2.3428]
[1717238803326,0.11331989,3785.6,3785.0,2.3428]
[1717238803511,0.11331989,3785.6,3785.1,0.634]
[1717238805311,0.11331989,3785.6,3785.5,0.634]
[1717238805634,2.64118,3786.2,3785.5,0.634]
[1717238805635,3.0,3786.1,3785.5,0.634]
[1717238805800,0.11325292,3785.6,3785.5,0.634]
[1717238805998,3.0,3786.1,3785.5,0.634]
[1717238806335,0.11325292,3785.6,3785.5,0.634]
[1717238806535,3.0,3786.1,3785.5,0.634]
[1717238806737,0.11325292,3785.6,3785.5,0.634]
[1717238806935,3.0,3786.1,3785.5,0.634]
[1717238807097,9.868,3786.8,3785.4,2.426]
[1717238807098,0.11325292,3785.6,3785.4,2.426]
[1717238807297,2.64112,3786.3,3785.5,0.634]
[1717238807506,3.327512,3786.2,3785.5,0.634]
[1717238807701,3.44086808,3786.2,3785.5,0.634]
[1717238809316,3.44086808,3786.2,3785.4,0.634]
[1717238810838,2.438,3786.1,3785.1,2.6419]
[1717238811055,2.64131,3786.0,3785.3,0.634]
[1717238811359,3.60666773,3786.0,3785.3,0.634]
[1717238812843,3.60666773,3786.0,3784.6,10.07224]
[1717238813066,0.05277239,3785.9,3785.2,0.634]
[1717238813344,1.12370782,3785.9,3785.2,0.634]
[1717238813543,1.07093543,3785.9,3785.2,0.634]
[1717238819445,1.12370782,3785.9,3785.2,0.634]
[1717238820452,1.07093543,3785.9,3785.2,0.634]
[1717238820850,1.07093543,3785.9,3784.6,10.07224]
[1717238821013,2.438,3785.8,3785.1,0.634]
[1717238821219,3.16616576,3785.8,3785.1,0.634]
[1717238826776,3.16616576,3785.8,3784.6,12.49824]
[1717238826982,3.16616576,3785.8,3785.1,0.634]
[1717238827783,0.72816576,3785.8,3785.1,0.634]
[1717238827988,2.8838086,3785.7,3785.1,0.634]
[1717238828140,2.99694803,3785.7,3785.1,0.634]
[1717238828340,2.64159,3785.6,3784.6,10.07224]
[1717238828542,2.64159,3785.6,3784.6,7.43]
[1717238828770,2.4511,3785.4,3784.6,8.064]
[1717238829768,2.4511,3785.4,3784.6,7.43]
[1717238830075,2.4511,3785.4,3784.6,8.064]
[1717238831369,2.4511,3785.4,3784.6,7.43]
[1717238831570,2.4511,3785.4,3784.6,8.064]
[1717238831879,0.57199438,3785.3,3784.6,8.064]
[1717238833378,0.57199438,3785.3,3784.1,5.13387]
[1717238833717,0.57199438,3785.3,3784.5,0.634]
[1717238833862,2.64186,3785.2,3784.5,0.634]
[1717238834057,2.75497724,3785.2,3784.5,0.634]
[1717238834261,2.4511,3785.0,3784.5,0.634]
[1717238834754,0.11311189,3784.9,3784.5,0.634]
[1717238834953,0.11311189,3784.9,3784.1,5.13387]
[1717238835161,0.11311189,3784.9,3784.5,0.634]
[1717238836457,0.11311189,3784.9,3784.1,5.13387]
[1717238836659,0.11311189,3784.9,3784.5,0.634]
[1717238837153,0.11311189,3784.9,3784.5,0.584]
[1717238837362,0.11311189,3784.9,3784.1,5.13387]
[1717238837598,0.11311189,3784.9,3784.5,0.634]
[1717238840592,2.64186,3785.2,3784.5,0.634]
[1717238840782,0.11311111,3784.8,3784.5,0.634]
[1717238840978,2.64186,3785.2,3784.5,0.634]
[1717238841181,0.11311646,3785.1,3784.5,0.634]
[1717238841503,0.11311646,3785.1,3785.0,0.634]
[1717238842001,0.11311646,3785.1,3785.0,0.584]
[1717238842002,0.11310052,3785.1,3785.0,0.584]
[1717238842585,3.0,3785.7,3785.0,0.584]
[1717238842829,3.872655,3785.7,3785.0,0.584]
[1717238842972,2.4511,3785.6,3785.0,0.584]
[1717238843313,2.4511,3785.6,3784.9,0.634]
[1717238848703,2.64169,3785.5,3784.7,0.634]
[1717238849686,2.64169,3785.5,3784.9,0.634]
[1717238849886,3.5382345,3785.5,3784.5,2.4002]
[1717238850494,3.5382345,3785.5,3784.8,0.634]
[1717238851492,3.5382345,3785.5,3784.2,7.43]
[1717238851493,2.64198,3785.1,3784.2,7.43]
[1717238851694,2.64198,3785.1,3784.5,0.634]
[1717238851695,2.4801,3785.0,3784.5,0.634]
[1717238852320,0.512208,3784.9,3784.5,0.634]
[1717238852824,0.512208,3784.9,3784.1,2.4002]
[1717238853120,2.4801,3785.0,3784.4,0.634]
[1717238855486,2.4801,3785.0,3784.3,0.634]
[1717238855715,2.4801,3785.0,3784.5,0.634]
[1717238856203,0.634,3785.4,3784.5,0.634]
[1717238856204,2.4801,3785.4,3784.5,0.634]
[1717238856416,0.43045445,3785.3,3784.1,2.4002]
[1717238856597,0.54351987,3785.3,3784.6,0.634]
[1717238857423,0.54351987,3785.3,3784.1,2.4002]
[1717238857625,0.54351987,3785.3,3784.6,0.634]
[1717238857921,0.30236199,3785.2,3784.6,0.634]
[1717238858296,0.1130878,3785.1,3784.6,0.634]
[1717238858625,0.1130878,3785.1,3784.1,2.4002]
[1717238858827,0.1130878,3785.1,3784.6,0.634]
[1717238859131,0.43045445,3785.3,3784.4,2.4002]
[1717238859350,0.11307476,3785.0,3784.4,2.4002]
[1717238859638,0.11307298,3784.9,3784.6,0.634]
[1717238859855,0.29105545,3785.2,3784.6,0.634]
[1717238860031,0.11307119,3784.8,3784.6,0.634]
[1717238860231,2.64191,3785.2,3784.0,2.64264]
[1717238860421,0.11306941,3784.7,3784.3,0.634]
[1717238860618,2.4801,3785.0,3784.3,0.634]
[1717238860832,0.11303892,3784.6,3784.5,0.634]
[1717238861037,2.4801,3785.0,3784.5,0.634]
[1717238861246,0.11303892,3784.6,3784.5,0.634]
[1717238861408,2.4801,3785.0,3784.5,0.634]
[1717238861609,0.11303892,3784.6,3784.5,0.634]
[1717238861853,2.4801,3785.0,3784.5,0.634]
[1717238862008,0.11303892,3784.6,3784.5,0.634]
[1717238862343,2.4801,3785.0,3784.0,2.64264]
[1717238862650,2.4801,3785.0,3784.5,0.634]
[1717238862849,0.92524528,3784.9,3784.5,0.634]
[1717238863256,0.92524528,3784.9,3784.0,2.64264]
[1717238863427,0.11304428,3784.9,3784.5,0.634]
[1717238864613,2.99894822,3785.1,3784.5,0.634]
[1717238864814,0.11303146,3784.8,3784.5,0.634]
[1717238865014,2.99894822,3785.1,3784.7,0.634]
[1717238867146,2.99894822,3785.1,3784.2,2.4002]
[1717238867314,2.99894822,3785.1,3784.6,0.634]
[1717238868356,2.99894822,3785.1,3784.7,2.2995]
[1717238871653,0.11308286,3785.0,3784.7,2.2995]
[1717238872021,3.0,3785.3,3784.7,2.2995]
[1717238872221,2.4801,3785.4,3784.7,2.2995]
[1717238872222,0.11312571,3784.9,3784.7,2.2995]
[1717238872468,3.0,3785.3,3784.7,2.2995]
[1717238872755,0.11312393,3784.8,3784.7,2.2995]
[1717238872961,3.0,3785.3,3784.7,2.2995]
[1717238873157,0.11312393,3784.8,3784.7,2.2995]
[1717238873358,3.0,3785.3,3784.8,0.634]
[1717238873552,2.4801,3785.4,3784.8,0.634]
[1717238876061,2.4801,3785.4,3784.7,2.2995]
[1717238876253,2.4801,3785.4,3784.1,2.2995]
[1717238876559,2.4801,3785.4,3784.7,0.634]
[1717238876854,3.292267,3785.4,3784.7,0.634]
[1717238877055,3.0,3785.3,3784.7,0.634]
[1717238877754,3.0,3785.3,3784.5,2.2995]
[1717238877963,5.64181,3785.3,3784.6,0.634]
[1717238878129,2.4721,3785.2,3784.6,0.634]
[1717238878324,3.3647077,3785.2,3784.6,0.634]
[1717238878556,3.0,3785.1,3784.6,0.634]
[1717238879178,2.6421,3784.9,3784.0,7.43]
[1717238879475,2.6421,3784.9,3784.4,0.634]
[1717238881035,3.54278077,3784.9,3784.4,0.634]
[1717238885089,2.6421,3784.9,3784.4,0.634]
[1717238886702,0.11306606,3784.8,3784.4,0.634]
[1717238891001,0.11306606,3784.8,3784.6,0.634]
[1717238891360,2.385,3785.2,3784.6,0.634]
[1717238891557,0.11301008,3784.7,3784.6,0.634]
[1717238891775,2.385,3785.2,3784.6,0.634]
[1717238891994,0.11301008,3784.7,3784.6,0.634]
[1717238892198,2.385,3785.2,3784.6,0.634]
[1717238892387,0.11301008,3784.7,3784.6,0.634]
[1717238892997,2.64188,3785.2,3784.5,0.634]
[1717238893202,0.11301008,3784.7,3784.5,0.634]
[1717238893359,3.0,3785.1,3784.5,0.634]
[1717238893559,0.1130083,3784.6,3784.5,0.634]
[1717238893759,2.385,3785.0,3784.5,0.634]
[1717238893963,0.11310396,3784.6,3784.1,2.64257]
[1717238894201,2.385,3785.0,3784.4,0.634]
[1717238894505,0.802688,3784.9,3784.4,0.634]
[1717238894716,0.91579778,3784.9,3784.4,0.634]
[1717238895069,0.91579778,3784.9,3783.8,2.2676]
[1717238895302,0.11310978,3784.9,3784.4,0.634]
[1717238896010,2.385,3784.8,3783.8,2.2676]
[1717238896217,5.02716,3784.8,3784.2,0.634]
[1717238896509,0.11310621,3784.7,3784.2,0.634]
[1717238901509,0.11310621,3784.7,3783.8,2.2676]
[1717238901714,0.11310621,3784.7,3784.3,0.634]
[1717238904015,0.11310621,3784.7,3784.5,0.634]
[1717238904215,0.11310621,3784.7,3784.5,2.9016]
[1717238904423,2.385,3785.2,3784.5,2.9016]
[1717238904631,0.11301339,3784.6,3784.5,2.2676]
[1717238904798,2.385,3785.2,3784.5,2.9016]
[1717238905119,0.11302404,3785.1,3784.5,2.9016]
[1717238906697,0.11302404,3785.1,3784.7,0.634]
[1717238909327,2.642,3785.0,3784.4,0.634]
[1717238909626,0.11313481,3784.9,3784.4,0.634]
[1717238914300,0.11313481,3784.9,3784.6,0.634]
[1717238914495,2.385,3785.2,3784.6,0.634]
[1717238914703,3.0,3785.4,3784.6,0.634]
[1717238914930,0.11314195,3785.3,3784.6,0.634]
[1717238925378,0.11314195,3785.3,3784.5,2.2607]
[1717238925379,0.11314195,3785.3,3784.7,2.3299]
[1717238925507,0.11314195,3785.3,3785.2,0.634]
[1717238925710,3.0,3785.9,3785.2,2.9639]
[1717238926042,0.10932004,3785.8,3785.2,2.9639]
[1717238931520,0.10932004,3785.8,3785.4,0.634]
[1717238932237,0.10932004,3785.8,3785.6,0.634]
[1717238932930,0.10947499,3785.7,3785.6,0.634]
[1717238933256,3.0,3786.3,3785.6,0.634]
[1717238933751,0.1095031,3786.2,3785.6,0.634]
[1717238936131,2.4926,3786.1,3785.3,2.3299]
[1717238936345,5.4926,3786.1,3785.6,0.634]
[1717238936543,0.10969397,3786.0,3785.6,0.634]
[1717238937552,3.0,3786.2,3785.6,0.634]
[1717238937855,0.10969575,3786.1,3785.6,0.634]
[1717238941359,2.64105,3786.4,3785.8,0.634]
[1717238941750,0.10608376,3786.3,3785.8,0.634]
[1717238943663,0.10608376,3786.3,3786.0,0.634]
[1717238943955,0.10608376,3786.3,3785.8,0.634]
[1717238944178,0.10607002,3786.2,3785.8,0.634]
[1717238944465,3.0,3786.6,3785.8,0.634]
[1717238944626,0.10606823,3786.1,3785.8,0.634]
[1717238944825,3.0,3786.5,3785.8,0.634]
[1717238945120,0.10606645,3786.0,3785.8,0.634]
[1717238945321,0.10606467,3785.9,3785.8,0.634]
[1717238945526,3.0,3786.5,3785.8,0.634]
[1717238945866,0.10607358,3786.4,3785.8,0.634]
[1717238949530,0.10607358,3786.4,3785.3,2.64177]
[1717238949734,0.10607358,3786.4,3785.6,0.634]
[1717238949735,2.428,3786.3,3785.6,0.634]
[1717238950064,0.10606934,3786.2,3785.6,0.634]
[1717238952571,2.428,3786.3,3785.6,0.634]
[1717238952733,0.10619834,3786.2,3785.6,0.634]
[1717238953231,0.10619834,3786.2,3785.3,2.64177]
[1717238953445,0.10619834,3786.2,3785.6,0.634]
[1717238954581,6.35362056,3786.2,3785.1,2.4514]
[1717238954737,2.64133,3786.0,3785.3,0.634]
[1717238955068,0.10615129,3785.9,3785.3,0.634]
[1717238956872,0.10615129,3785.9,3785.1,2.4514]
[1717238957072,0.10615129,3785.9,3785.2,0.634]
[1717238958747,2.428,3785.7,3784.7,7.43]
[1717238959047,2.74764611,3785.6,3785.0,0.634]
[1717238959250,2.74764611,3785.6,3783.9,2.774]
[1717238959251,2.64201,3785.0,3784.1,1.05716]
[1717238959460,3.062,3784.9,3784.1,1.05716]
[1717238959716,2.53391567,3784.9,3784.2,0.634]
[1717238960244,2.53391567,3784.9,3783.7,2.4514]
[1717238960493,2.53391567,3784.9,3784.3,0.634]
[1717238965900,0.10591567,3784.9,3784.3,0.634]
[1717238968054,0.10591567,3784.9,3784.5,0.634]
[1717238973708,0.10591567,3784.9,3784.7,0.634]
[1717238974076,5.64169,3785.5,3784.7,0.634]
[1717238974280,0.10573263,3784.8,3784.7,0.634]
[1717238974500,5.64169,3785.5,3784.7,0.634]
[1717238974693,0.10573263,3784.8,3784.7,0.634]
[1717238975316,5.64169,3785.5,3784.7,0.634]
[1717238975491,0.10578396,3784.8,3784.7,0.634]
[1717238975690,5.64169,3785.5,3784.7,0.634]
[1717238975892,0.10578396,3784.8,3784.7,0.634]
[1717238976092,5.64169,3785.5,3784.7,0.634]
[1717238976278,0.10578396,3784.8,3784.7,0.634]
[1717238976479,5.64169,3785.5,3784.7,0.634]
[1717238977009,0.10579466,3785.4,3784.9,0.634]
[1717238978487,0.10579466,3785.4,3785.0,2.345]
[1717238978692,0.10579466,3785.4,3785.1,0.634]
[1717238979007,0.10581588,3785.3,3785.1,0.634]
[1717238979203,5.2821,3785.9,3785.1,0.634]
[1717238979391,0.10582479,3785.8,3785.1,0.634]
[1717238988400,0.10582479,3785.8,3785.3,0.634]
[1717238992746,0.10582479,3785.8,3785.0,2.345]
[1717238992918,0.10582479,3785.8,3785.2,0.634]
[1717238994639,0.10582479,3785.8,3785.3,2.2755]
[1717238996948,0.10582479,3785.8,3785.2,0.634]
[1717239002059,2.48322479,3785.8,3785.2,0.634]
[1717239003871,2.48322479,3785.8,3784.8,2.2755]
[1717239004031,2.48322479,3785.8,3785.1,0.634]
[1717239005762,2.48322479,3785.8,3784.8,2.2755]
[1717239005964,2.48322479,3785.8,3785.1,0.634]
[1717239015476,2.2648,3785.6,3784.7,2.64219]
[1717239015645,2.2648,3785.6,3784.8,0.634]
[1717239015990,2.2648,3785.4,3784.8,0.634]
[1717239016351,0.0987864,3785.3,3784.8,0.634]
[1717239017264,0.0987864,3785.3,3785.0,0.634]
[1717239017579,2.64154,3785.7,3785.0,0.634]
[1717239017740,0.09866522,3785.2,3785.0,0.634]
[1717239017945,2.64154,3785.7,3785.0,0.634]
[1717239018284,2.64154,3785.7,3784.9,2.39]
[1717239018285,2.64154,3785.7,3785.2,0.634]
[1717239018457,0.09867235,3785.6,3785.2,0.634]
[1717239021571,2.2648,3785.5,3785.2,0.634]
[1717239021777,2.2648,3785.5,3785.0,0.634]
[1717239022177,0.09880755,3785.4,3785.0,0.634]
[1717239022390,0.09880755,3785.4,3784.7,5.03219]
[1717239022679,0.09880755,3785.4,3785.1,0.634]
[1717239024183,0.09880755,3785.4,3784.5,3.024]
[1717239024567,0.09880755,3785.4,3784.7,0.634]
[1717239025754,0.09880755,3785.4,3784.9,0.634]
[1717239025955,3.0,3785.6,3784.9,0.634]
[1717239026153,0.09850566,3785.3,3784.5,2.39]
[1717239026393,3.0,3785.6,3784.9,0.634]
[1717239026892,0.09856733,3785.5,3784.9,0.634]
[1717239029491,2.64154,3785.7,3784.9,0.634]
[1717239029796,0.09856473,3785.4,3784.9,0.634]
[1717239030099,0.09856295,3785.3,3784.9,0.634]
[1717239030457,2.64154,3785.7,3784.9,3.1275]
[1717239030657,0.0985683,3785.6,3784.9,3.1275]
[1717239031598,0.1318113,3785.6,3784.9,3.1275]
[1717239034671,0.1318113,3785.6,3785.1,0.634]
[1717239034875,2.4136,3785.9,3785.1,0.634]
[1717239035075,0.12754484,3785.5,3785.1,0.634]
[1717239035299,2.4136,3785.9,3785.1,0.634]
[1717239035495,0.12754393,3785.4,3785.1,0.634]
[1717239035802,2.4136,3785.9,3785.1,0.634]
[1717239036001,0.12754755,3785.8,3785.1,0.634]
[1717239036527,0.12754755,3785.8,3785.2,2.4935]
[1717239036693,0.12754755,3785.8,3785.3,0.634]
[1717239037003,0.12757255,3785.7,3785.3,0.634]
[1717239037372,3.0,3786.1,3785.3,0.634]
[1717239037767,0.12757527,3786.0,3785.3,0.634]
[1717239039574,0.12757527,3786.0,3785.2,2.4935]
[1717239039575,0.12757527,3786.0,3785.5,0.634]
[1717239039774,2.64121,3786.2,3785.5,0.634]
[1717239040380,0.12769641,3786.1,3785.5,0.634]
[1717239042718,0.12769641,3786.1,3785.9,0.634]
[1717239043083,3.0,3786.6,3785.9,0.634]
[1717239043290,0.12779263,3786.0,3785.9,0.634]
[1717239043492,3.0,3786.6,3785.7,3.1275]
[1717239043812,0.12779263,3786.0,3785.7,3.1275]
[1717239044109,0.12779173,3785.9,3785.7,3.1275]
[1717239044500,3.0,3786.6,3785.7,3.1275]
[1717239044700,0.12779082,3785.8,3785.7,3.1275]
[1717239045004,3.0,3786.6,3785.7,3.1275]
[1717239045212,0.12779715,3786.5,3785.7,3.1275]
[1717239049526,0.12779715,3786.5,3785.9,0.634]
[1717239050092,0.12779715,3786.5,3786.0,0.05281998]
[1717239050293,0.12779715,3786.5,3785.9,0.634]
[1717239050823,0.12779715,3786.5,3786.0,2.4065]
[1717239051022,0.12779715,3786.5,3786.1,0.05281907]
[1717239051227,2.64086,3786.7,3786.1,0.68681907]
[1717239051523,3.0,3787.0,3786.1,0.634]
[1717239051720,0.12797939,3786.6,3786.1,0.634]
[1717239051926,3.0,3787.0,3786.3,0.634]
[1717239052218,0.12807236,3786.5,3786.4,2.4065]
[1717239052435,3.0,3787.0,3786.4,2.4065]
[1717239052629,0.12807236,3786.5,3786.4,2.4065]
[1717239052802,3.0,3787.0,3786.4,2.4065]
[1717239052999,3.14574387,3787.1,3786.4,2.4065]
[1717239053204,0.14574387,3787.1,3786.5,0.634]
[1717239053414,0.12822901,3787.0,3786.5,0.634]
[1717239057629,0.12822901,3787.0,3786.8,2.4065]
[1717239061679,3.0,3787.4,3786.8,2.4065]
[1717239061875,0.12825724,3786.9,3786.8,2.4065]
[1717239062353,3.0,3787.6,3786.8,2.4065]
[1717239062542,0.12825724,3786.9,3786.8,2.4065]
[1717239062739,3.0,3787.6,3786.8,2.4065]
[1717239063052,0.12825724,3786.9,3786.8,2.4065]
[1717239063239,3.0,3787.6,3786.8,2.4065]
[1717239063440,0.12825724,3786.9,3786.8,2.4065]
[1717239063671,3.0,3787.6,3786.8,2.4065]
[1717239064267,0.12826266,3787.5,3786.9,0.634]
[1717239064585,0.12826266,3787.5,3787.1,0.634]
[1717239064898,5.3399,3788.0,3787.1,0.634]
[1717239065046,0.12837176,3787.4,3787.1,0.634]
[1717239065246,0.12837085,3787.3,3787.1,0.634]
[1717239065549,5.3399,3788.0,3787.1,0.634]
[1717239065752,0.12836995,3787.2,3787.1,0.634]
[1717239065973,5.3399,3788.0,3787.1,0.634]
[1717239066173,0.12836995,3787.2,3787.1,0.634]
[1717239066380,5.3399,3788.0,3787.1,0.634]
[1717239066587,0.12836995,3787.2,3787.1,0.634]
[1717239066797,5.3399,3788.0,3787.1,0.634]
[1717239067004,0.12836995,3787.2,3787.1,0.634]
[1717239067296,5.3399,3788.0,3787.1,0.634]
[1717239067498,0.12837628,3787.9,3787.1,0.634]
[1717239070168,0.12837628,3787.9,3787.2,2.4065]
[1717239070576,3.12837628,3787.9,3787.2,2.4065]
[1717239070809,0.12837628,3787.9,3787.2,2.4065]
[1717239071186,0.12837628,3787.9,3787.3,0.634]
[1717239072078,0.12837628,3787.9,3787.3,0.68680274]
[1717239072269,0.12837628,3787.9,3787.3,0.634]
[1717239080704,3.0,3788.1,3787.3,0.634]
[1717239080936,0.12847101,3788.0,3787.3,0.634]
[1717239087156,0.12847101,3788.0,3787.4,2.2685]
[1717239087313,0.12847101,3788.0,3787.5,0.634]
[1717239087632,0.634,3788.5,3787.5,0.634]
[1717239087831,0.12853481,3787.9,3787.5,0.634]
[1717239088033,0.634,3788.5,3787.5,0.634]
[1717239088656,0.12853933,3788.4,3787.5,0.634]
[1717239089261,0.12853933,3788.4,3787.6,2.32129479]
[1717239089451,0.12853933,3788.4,3787.7,0.634]
[1717239089647,3.0,3788.6,3787.8,0.05279478]
[1717239089847,3.0,3788.6,3787.8,0.05279332]
[1717239089848,0.12857722,3788.3,3787.8,0.05279332]
[1717239090048,3.0,3788.6,3787.8,0.05279332]
[1717239090253,3.0,3788.6,3787.7,0.634]
[1717239090571,0.12857903,3788.5,3787.7,0.634]
[1717239092781,0.12857903,3788.5,3787.8,2.2685]
[1717239093127,0.12857903,3788.5,3787.9,0.634]
[1717239098173,0.12857903,3788.5,3787.8,2.2685]
[1717239098547,2.55067903,3788.5,3787.8,2.2685]
[1717239102871,0.12857903,3788.5,3787.8,2.2685]
[1717239110310,5.09955,3788.4,3787.5,2.4081]
[1717239110625,5.09955,3788.4,3787.5,3.0421]
[1717239110626,0.12499099,3788.3,3787.5,3.0421]
[1717239115035,2.63978,3788.2,3787.0,2.4081]
[1717239115184,2.63978,3788.2,3787.3,0.634]
[1717239115383,0.12498944,3788.1,3787.3,0.634]
[1717239115829,0.12498944,3788.1,3787.5,0.634]
[1717239116477,0.12498944,3788.1,3787.5,3.0421]
[1717239116718,0.12498944,3788.1,3787.5,0.634]
[1717239119961,0.12498944,3788.1,3787.3,0.634]
[1717239121757,2.4599,3788.0,3787.3,0.634]
[1717239122073,0.12495517,3787.9,3787.3,0.634]
[1717239126535,2.63978,3788.2,3787.3,0.634]
[1717239126862,0.12495697,3788.1,3787.3,0.634]
[1717239129278,0.12495697,3788.1,3787.4,2.4495]
[1717239135765,0.12495697,3788.1,3787.5,0.634]
[1717239136560,0.12495697,3788.1,3787.6,2.4495]
[1717239136741,0.12500154,3788.0,3787.6,2.4495]
[1717239136934,5.9569,3788.6,3787.6,2.4495]
[1717239137148,0.12500605,3788.5,3787.6,2.4495]
[1717239144191,0.12500605,3788.5,3787.7,3.2741]
[1717239144388,0.12500605,3788.5,3787.9,0.634]
[1717239148473,0.12500605,3788.5,3787.8,2.4495]
[1717239148673,0.12500605,3788.5,3787.8,3.0835]
[1717239151319,0.12500605,3788.5,3787.8,2.4495]
[1717239151706,2.46780605,3788.5,3787.6,2.2851]
[1717239151899,2.63965,3788.4,3787.6,2.2851]
[1717239152394,0.12508861,3788.3,3787.6,2.2851]
[1717239152598,0.12508861,3788.3,3787.7,0.634]
[1717239153919,0.12508861,3788.3,3787.6,2.2851]
[1717239154087,0.12508861,3788.3,3787.7,0.634]
[1717239155233,2.46788861,3788.3,3787.7,0.634]
[1717239156224,2.46788861,3788.3,3787.2,12.35551]
[1717239156524,2.46788861,3788.3,3787.6,0.634]
[1717239161054,2.63978,3788.2,3787.2,9.7151]
[1717239161268,2.63978,3788.2,3787.2,10.3491]
[1717239161269,2.3428,3788.1,3787.2,10.3491]
[1717239161563,2.46788681,3788.1,3787.2,10.3491]
[1717239162147,2.63995,3788.0,3787.3,0.634]
[1717239162543,0.12499737,3787.9,3787.3,0.634]
[1717239169064,0.12499737,3787.9,3787.4,2.2712]
[1717239169862,0.12499737,3787.9,3787.5,0.634]
[1717239178091,2.3428,3788.1,3787.5,0.634]
[1717239178601,0.12500154,3788.0,3787.5,0.634]
[1717239180790,0.12500154,3788.0,3787.5,0.632399]
[1717239180963,0.12500154,3788.0,3787.5,0.634]
[1717239188200,0.12500154,3788.0,3787.1,2.64053]
[1717239188385,0.12500154,3788.0,3787.5,0.634]
[1717239192619,3.0,3788.4,3787.5,0.634]
[1717239192913,2.4635,3788.2,3787.5,0.634]
[1717239193408,0.12503814,3788.1,3787.5,0.634]
[1717239197789,3.0,3788.4,3787.5,0.634]
[1717239197989,0.12505615,3788.3,3787.5,0.634]
[1717239199228,2.4635,3788.2,3787.5,0.634]
[1717239199441,0.12505434,3788.1,3787.5,0.634]
[1717239204108,5.4635,3788.4,3787.5,0.634]
[1717239204308,0.1250502,3788.0,3787.5,0.634]
[1717239204510,5.4635,3788.4,3787.5,0.634]
[1717239204709,0.1250493,3787.9,3787.5,0.634]
[1717239204914,5.4635,3788.4,3787.5,0.634]
[1717239205097,0.1250484,3787.8,3787.5,0.634]
[1717239205294,5.4635,3788.4,3787.7,0.634]
[1717239206736,3.0,3788.4,3787.8,2.2529]
[1717239207036,2.327,3788.7,3787.9,0.634]
[1717239207200,3.0,3788.7,3788.1,0.634]
[1717239207628,3.0,3788.9,3788.1,0.634]
[1717239209299,2.28652151,3789.2,3788.1,0.634]
[1717239209608,2.63891,3789.5,3788.6,0.634]
[1717239209609,2.327,3789.3,3788.6,0.634]
[1717239209806,2.327,3789.3,3788.4,2.8869]
[1717239214121,2.327,3789.3,3788.4,2.2529]
[1717239214504,2.327,3789.3,3788.5,0.634]
[1717239216748,2.63916,3789.1,3788.2,0.634]
[1717239216899,2.4879,3789.0,3788.2,0.634]
[1717239217102,5.61345568,3789.0,3788.2,0.634]
[1717239219148,5.61345568,3789.0,3788.4,0.634]
[1717239219452,6.52471635,3789.0,3788.2,0.634]
[1717239219619,6.52471635,3789.0,3787.9,10.06996]
[1717239219620,2.63929,3788.9,3787.9,12.34866]
[1717239219802,2.63929,3788.9,3788.2,0.634]
[1717239220007,0.12555387,3788.8,3788.2,0.634]
[1717239221345,2.4879,3788.7,3788.2,0.634]
[1717239221959,0.12555207,3788.6,3788.2,0.634]
[1717239222549,0.12555207,3788.6,3787.5,9.7087]
[1717239222847,0.12555207,3788.6,3788.1,0.634]
[1717239223923,0.12555207,3788.6,3787.5,2.2787]
[1717239223924,0.65082628,3788.6,3787.5,2.2787]
[1717239224133,0.12555207,3788.6,3787.8,0.634]
[1717239232836,0.12555207,3788.6,3787.8,2.9963]
[1717239233235,0.12555207,3788.6,3788.0,0.634]
[1717239236972,2.63929,3788.9,3788.0,0.634]
[1717239236973,2.298,3788.7,3788.0,0.634]
[1717239237179,0.1255025,3788.5,3788.0,0.634]
[1717239237366,2.298,3788.7,3788.0,0.634]
[1717239237840,0.1255034,3788.6,3788.0,0.634]
[1717239241785,2.298,3788.5,3787.9,0.634]
[1717239241959,2.42351546,3788.5,3787.9,0.634]
[1717239245504,0.12551546,3788.5,3787.9,0.634]
[1717239245800,2.57151546,3788.5,3787.9,0.634]
[1717239250905,2.57151546,3788.5,3788.1,0.634]
[1717239251104,2.57151546,3788.5,3787.7,2.3785]
[1717239251282,2.57151546,3788.5,3788.0,0.634]
[1717239254205,3.12866701,3788.5,3787.8,0.634]
[1717239254508,2.446,3788.4,3787.8,0.634]
[1717239254824,0.12551042,3788.3,3787.8,0.634]